Cogmind - Beta 13 @@@ ROGUE MODE // 2024.05.03 @ 21:17:50 Player: Occam Result: Self-destructed Performance ------------- Evolutions (2) 1000 Regions Visited (5) 1000 Robots Destroyed (76) 380 Value Destroyed (1704) 1704 Prototype IDs (25) 500 Alien Tech Used (0) 0 Bonus (300) 300 TOTAL SCORE: 4884 Bonus ------- Aligned with FarCom 300 Cogmind --------- Core Integrity 490/550 Matter 290/300 Energy 275/275 System Corruption 0% Temperature Cool (0) Movement Rolling (190) Ox6 Location -8/Materials Parts ------- > --- POWER (1) -------- Deuterium Engine > --- PROPULSION (2) --- Improved Treads Compact Wheel > --- UTILITY (5) ------ Huge Storage Unit 0b10 Alert Chip Improved Weapon Shielding Improved Weapon Shielding Improved Light Armor Plating > --- WEAPON (3) ------- AWS/Thermal Advanced EMP Blaster > --- INVENTORY (25) --- Ion Engine Armored Treads Armored Treads Compact Wheel Improved Heat Sink Huge Storage Unit High-capacity Matter Pod (200) Structural Scanner Structural Scanner Machine Analyzer Improved Sensor Array Improved Signal Interpreter Hacking Suite Hacking Suite Trap Reconfigurator EM Shotgun Precision Beam Rifle EM Pulse Cannon Heavy Assault Rifle High-powered Shotgun Grenade Launcher Missile Launcher Datajack Heavy Hammer Ripper Peak State ------------ > --- POWER ------------ Deuterium Engine > --- PROPULSION ------- Improved Treads Compact Wheel > --- UTILITY ---------- Huge Storage Unit 0b10 Alert Chip Improved Weapon Shielding Improved Weapon Shielding Improved Light Armor Plating > --- WEAPON ----------- AWS/Thermal Advanced EMP Blaster > --- INVENTORY -------- Ion Engine Armored Treads Armored Treads Compact Wheel Improved Heat Sink Huge Storage Unit High-capacity Matter Pod Structural Scanner Structural Scanner Machine Analyzer Improved Sensor Array Improved Signal Interpreter Hacking Suite Hacking Suite Trap Reconfigurator EM Shotgun Precision Beam Rifle EM Pulse Cannon Heavy Assault Rifle High-powered Shotgun Grenade Launcher Missile Launcher Datajack Heavy Hammer Ripper [Rating: 48] Favorites ----------- Power Deuterium Engine Engine Deuterium Engine Power Core Light Nuclear Core Propulsion Light Treads Treads Light Treads Leg Aluminum Leg Wheel Compact Wheel Utility Huge Storage Unit Device Structural Scanner Storage Huge Storage Unit Processor 0b10 Alert Chip Protection Improved Weapon Shielding Weapon Light Assault Rifle Energy Gun AWS/Thermal Energy Cannon Particle Cannon Ballistic Gun Light Assault Rifle Launcher Advanced EMP Blaster Build | -11 -10 -10 -10 -9 -8 ------- Run | Yrd Mat Min Exi Min Mat Slots Evolved 4 | . . . . . 4 Power . | . . . . . . Propulsion . | . . . . . . Utility 3 | . . . . . 3 Weapon 1 | . . . . . 1 Parts Attached 36 | 1 13 4 3 2 13 Power 4 | . 1 1 . . 2 Engine 3 | . 1 1 . . 1 Core 1 | . . . . . 1 Reactor . | . . . . . . Propulsion 11 | . 6 . 1 . 4 Treads 7 | . 3 . 1 . 3 Leg . | . . . . . . Wheel 4 | . 3 . . . 1 Hover . | . . . . . . Flight . | . . . . . . Utility 9 | 1 3 . 1 . 4 Device 2 | 1 1 . . . . Storage 2 | . 2 . . . . Processor 1 | . . . 1 . . Hackware . | . . . . . . Protection 4 | . . . . . 4 Artifact . | . . . . . . Weapon 12 | . 3 3 1 2 3 Energy Gun 5 | . 1 1 1 1 1 Energy Cannon 1 | . . . . . 1 Ballistic Gun 2 | . 1 1 . . . Ballistic Cannon . | . . . . . . Launcher 4 | . 1 1 . 1 1 Special Weapon . | . . . . . . Impact Weapon . | . . . . . . Slashing Weapon . | . . . . . . Piercing Weapon . | . . . . . . Special Melee Weapon . | . . . . . . Unidentified Prototypes 2 | . . . . . 2 Parts Lost 1 | . 1 . . . . Power . | . . . . . . Propulsion 1 | . 1 . . . . Utility . | . . . . . . Weapon . | . . . . . . Highest Loss Streak 1 | . 1 . . . . To Critical Strikes . | . . . . . . Average Slot Usage (%) 94 | . 100 97 92 84 89 Engine 11 | . 14 14 14 14 4 Core 1 | . . . . . 4 Treads 13 | . 17 14 14 14 9 Wheel 11 | . 10 14 14 14 9 Device 7 | . 14 14 4 . . Storage 12 | . 14 14 14 14 9 Processor 5 | . . . 9 14 9 Protection 7 | . . . . . 26 Energy Gun 11 | . 7 11 13 13 16 Ballistic Gun 10 | . 20 13 7 . . Naked Turns . | . . . . . . Heaviest Build 110 | 13 88 94 97 97 110 Greatest Support 40 | 20 40 16 16 16 16 Greatest Overweight (x) 6 | . 5 5 6 6 6 Average Overweight (x) 4 | . 3 5 5 5 6 Largest Inventory Capacity 25 | 8 25 25 25 25 25 Average Capacity 23 | 8 20 25 25 25 25 Most Carried 25 | 6 19 25 24 25 25 Average Carried 19 | 6 12 22 22 23 24 Final Capacity 25 | 8 25 25 25 25 25 Final Carried 25 | 6 19 24 23 24 25 Class Distribution -------------------- 73% | Mutant 26% | Tank Dominant Class ---------------- Mutant | -10/Materials Mutant | -10/Mines Mutant | -10/Exiles Mutant | -9/Mines Tank | -8/Materials Resources | -11 -10 -10 -10 -9 -8 ----------- Run | Yrd Mat Min Exi Min Mat Matter Collected 922 | 216 332 104 30 78 162 Remotely . | . . . . . . Salvage Created 2604 | 21 708 105 . 178 1592 Parts 153 | 4 49 4 . 19 77 Haulers Intercepted 6 | . 2 . . . 4 Recyclers Shooed 6 | . 4 . . 1 1 Parts Field Recycled . | . . . . . . Retrieved Matter . | . . . . . . Parts Self-Destructed . | . . . . . . Prevented . | . . . . . . Kills | -11 -10 -10 -10 -9 -8 ------- Run | Yrd Mat Min Exi Min Mat Combat Hostiles Destroyed 50 | . 11 4 . 12 23 Guns 42 | . 9 2 . 8 23 AOE 8 | . 2 2 . 4 . Classes Destroyed 11 | 1 8 . . . 2 Worker 2 | . . . . . 2 Builder 4 | . 2 . . . 2 Tunneler 1 | 1 . . . . . Hauler 6 | . 2 . . . 4 Recycler 5 | . 1 . . . 4 Mechanic 1 | . 1 . . . . Operator 4 | . 3 . . . 1 Watcher 3 | . 2 . . . 1 Swarmer 20 | . 3 . . 10 7 Grunt 28 | . 8 4 . 2 14 Sentry 2 | . . . . . 2 Best Kill Streak 5 | 1 4 2 . 5 4 Combat Bots Only 5 | . 3 2 . 5 4 Max Kills in Single Turn 2 | 1 2 1 . 2 2 Gunslinging . | . . . . . . Exploded 2 | . 1 1 . 2 . Melee . | . . . . . . Uniques/NPCs Destroyed . | . . . . . . Combat | -11 -10 -10 -10 -9 -8 -------- Run | Yrd Mat Min Exi Min Mat Hostile Shots Fired 161 | . 66 12 . 30 53 Missed 54 | . 17 4 . 10 23 Damage Taken 1356 | . 581 110 . 227 438 Core 303 | . 161 25 . 57 60 Absorbed by Shields . | . . . . . . Redirected to Shielding 92 | . . . . . 92 Core Remaining (%) 51 | 100 . . . 2 . Volleys Fired 174 | 3 95 10 . 5 61 Largest 2 | 2 2 2 . 1 1 Hottest 65 | 40 60 65 . 30 61 Shots Fired 349 | 6 181 16 . 26 120 Gun 330 | 6 175 12 . 21 116 Cannon . | . . . . . . Launcher 19 | . 6 4 . 5 4 Special . | . . . . . . Kinetic 154 | 6 142 6 . . . Thermal 176 | . 33 6 . 21 116 Explosive 15 | . 6 4 . 5 . Electromagnetic 4 | . . . . . 4 Robot Hit Streak 24 | 3 12 4 . 7 24 Robot Miss Streak 6 | 1 6 2 . 3 3 Penetration Max . | . . . . . . Secondary Targets 1 | . . 1 . . . Max Gunslinging Chain 1 | . . 1 . . . Autonomous 80 | . . . . 21 59 Shots Hit Robots 240 | 4 113 10 . 14 99 Core Hits 120 | 2 48 9 . 14 47 Critical Kills 1 | . 1 . . . . Critical Parts Destroyed 1 | . 1 . . . . Critical Strikes 9 | . 2 . . . 7 Burn 7 | . . . . . 7 Destroy 2 | . 2 . . . . Melee Attacks . | . . . . . . Impact . | . . . . . . Slashing . | . . . . . . Piercing . | . . . . . . Sneak Attacks . | . . . . . . Combat Hostiles . | . . . . . . Follow-up Attacks . | . . . . . . Damage Inflicted 4841 | 35 1173 326 . 690 2617 Guns 4135 | 35 1038 131 . 478 2453 Cannons . | . . . . . . Explosions 706 | . 135 195 . 212 164 Melee . | . . . . . . Ramming . | . . . . . . Kinetic 908 | 35 788 85 . . . Thermal 3227 | . 250 46 . 478 2453 Explosive 542 | . 135 195 . 212 . Electromagnetic 164 | . . . . . 164 Impact . | . . . . . . Slashing . | . . . . . . Piercing . | . . . . . . Highest Corruption . | . . . . . . Average Corruption . | . . . . . . Corruption Purged . | . . . . . . Corruption Blocked . | . . . . . . Overload Shots . | . . . . . . Overflow Damage 6 | . 1 . . 5 . Projectiles . | . . . . . . Explosions 6 | . 1 . . 5 . Melee . | . . . . . . Knockbacks . | . . . . . . Impact . | . . . . . . Kinetic . | . . . . . . Secondary . | . . . . . . Self-Inflicted Damage 64 | . . . . 58 6 Shots 4 | . . . . 3 1 Rammed . | . . . . . . Targets Rammed . | . . . . . . Kicked . | . . . . . . Crushed . | . . . . . . Highest Temperature 126 | . 120 123 . . 126 Average Temperature 34 | . 27 50 . . 38 Received Heat Transfer 600 | . 300 102 . 18 180 Siege Activations . | . . . . . . Robots Corrupted . | . . . . . . Combat Hostiles . | . . . . . . Parts Fried 1 | . . . . . 1 Impact Corruptions . | . . . . . . Robots Melted . | . . . . . . Combat Hostiles . | . . . . . . Parts Melted 12 | . 1 . . 2 9 Heat Transferred 5386 | . 550 100 . 555 4181 Parts Sabotaged . | . . . . . . Parts Stolen . | . . . . . . Parts Stripped . | . . . . . . Power Chain Reactions . | . . . . . . Alert | -11 -10 -10 -10 -9 -8 ------- Run | Yrd Mat Min Exi Min Mat Peak Influence 227 | 5 197 117 . 210 227 Initial 31 | . 3 . . . 31 Average 60 | 2 55 44 . 91 63 Maximum Alert Level 1 | . . . . 1 1 Low Security (%) 99 | 100 100 100 . 96 98 Level 1 . | . . . . 3 1 Level 2 . | . . . . . . Level 3 . | . . . . . . Level 4 . | . . . . . . Level 5 . | . . . . . . High Security . | . . . . . . Max Security . | . . . . . . Squads Dispatched 15 | . 4 1 . 1 9 Investigation 8 | . 1 1 . 1 5 Extermination . | . . . . . . Reinforcement 4 | . 3 . . . 1 Assault . | . . . . . . Garrison 3 | . . . . . 3 Intercept . | . . . . . . Searches Triggered . | . . . . . . Construction Impeded . | . . . . . . Haulers Reinforced . | . . . . . . Active Scanning Responses . | . . . . . . Cargo Convoy Interrupts . | . . . . . . Stealth | -11 -10 -10 -10 -9 -8 --------- Run | Yrd Mat Min Exi Min Mat Distress Signals 2 | . . . . . 2 Communications Jammed . | . . . . . . Distress Signals . | . . . . . . Times Spotted 64 | . 24 4 . 12 24 Peak Tracking Total 4 | . 4 2 . 4 4 Tactical Retreats 2 | . 1 . . 1 . Traps | -11 -10 -10 -10 -9 -8 ------- Run | Yrd Mat Min Exi Min Mat Traps Triggered 2 | . 2 . . . . Indirectly . | . . . . . . Trap Hack Attempts . | . . . . . . Triggered . | . . . . . . Disarmed . | . . . . . . Reprogrammed . | . . . . . . Reused . | . . . . . . Traps Extracted . | . . . . . . Installed . | . . . . . . Triggered . | . . . . . . Machines | -11 -10 -10 -10 -9 -8 ---------- Run | Yrd Mat Min Exi Min Mat Machines Disabled 2 | . . . . . 2 Max in Single Turn 1 | . . . . . 1 Machines Repaired . | . . . . . . Machines Dismantled . | . . . . . . Machines Sabotaged . | . . . . . . Overloaded Fab Kills . | . . . . . . Hacking | -11 -10 -10 -10 -9 -8 --------- Run | Yrd Mat Min Exi Min Mat Machines Accessed 20 | . 7 1 2 1 9 Terminals 14 | . 6 . . 1 7 Fabricators . | . . . . . . Repair Stations 1 | . 1 . . . . Recycling Units . | . . . . . . Scanalyzers 2 | . . . . . 2 Garrison Access . | . . . . . . Total Hacks 62 | . 18 1 2 5 36 Successful 28 | . 7 1 2 1 17 Failed 32 | . 10 . . 4 18 Catastrophic 4 | . 1 . . 2 1 Database Lockouts 2 | . 1 . . . 1 Manual 37 | . 12 . 1 . 24 Terminals 48 | . 15 . . 5 28 Fabricators . | . . . . . . Repair Stations 3 | . 3 . . . . Recycling Units . | . . . . . . Scanalyzers 8 | . . . . . 8 Garrison Access . | . . . . . . Terminal Hacks 12 | . 4 1 2 1 4 Record 2 | . . . 1 1 . Robot Analysis 4 | . 2 . . . 2 Open Door 1 | . . 1 . . . Terminal Index 2 | . 1 . . . 1 Alert Level 1 | . 1 . . . . Hauler Manifests 1 | . . . . . 1 Derelict Proto ID Bank 1 | . . . 1 . . Fabricator Hacks . | . . . . . . Repair Station Hacks 1 | . 1 . . . . Scan Component 1 | . 1 . . . . Recycling Unit Hacks . | . . . . . . Scanalyzer 8 | . . . . . 8 Insert Component 4 | . . . . . 4 Analyze 4 | . . . . . 4 Garrison Access Hacks . | . . . . . . Unauthorized Hacks 7 | . 2 . . . 5 Terminals 7 | . 2 . . . 5 Assimilate 1 | . . . . . 1 Botnet 4 | . 1 . . . 3 Operators 2 | . 1 . . . 1 Fabricators . | . . . . . . Repair Stations . | . . . . . . Recycling Units . | . . . . . . Scanalyzers . | . . . . . . Garrison Access . | . . . . . . Data Cores Recovered . | . . . . . . Used . | . . . . . . Hacking Detections 16 | . 6 . . 1 9 Full Trace Events 5 | . . . . 1 4 Feedback Events . | . . . . . . Feedback Blocked . | . . . . . . Robot Schematics Acquired . | . . . . . . Robots Built . | . . . . . . Authchips . | . . . . . . Time . | . . . . . . Total Robot Build Rating . | . . . . . . Part Schematics Acquired 3 | . . . . . 3 Parts Built . | . . . . . . Authchips . | . . . . . . Time . | . . . . . . Total Part Build Rating . | . . . . . . Parts Repaired . | . . . . . . Time . | . . . . . . Parts Recycled . | . . . . . . Recycled Matter . | . . . . . . Retrieved Matter . | . . . . . . Retrieved Components . | . . . . . . Parts Scanalyzed 4 | . . . . . 4 Part Schematics Acquired 3 | . . . . . 3 Parts Damaged . | . . . . . . Bothacking | -11 -10 -10 -10 -9 -8 ------------ Run | Yrd Mat Min Exi Min Mat Used RIF Installer . | . . . . . . Robots Hacked . | . . . . . . Non-combat . | . . . . . . Combat . | . . . . . . Robot Hacks Applied . | . . . . . . Relay Couplers Released . | . . . . . . Fabnet Peak Effective % . | . . . . . . Robots Rewired . | . . . . . . Allies Hacked . | . . . . . . Hacks Repelled . | . . . . . . Allies | -11 -10 -10 -10 -9 -8 -------- Run | Yrd Mat Min Exi Min Mat Total Allies . | . . . . . . Largest Group . | . . . . . . Highest-Rated Group . | . . . . . . Highest-Rated Ally . | . . . . . . Total Orders . | . . . . . . Ally Attacks . | . . . . . . Total Damage . | . . . . . . Kills . | . . . . . . Allies Corrupted . | . . . . . . Allies Melted . | . . . . . . Intel | -11 -10 -10 -10 -9 -8 ------- Run | Yrd Mat Min Exi Min Mat Robot Analysis Total 4 | . 2 . . . 2 Derelict Logs Recovered 1 | . . . . 1 . Drone Launches . | . . . . . . Drone Recoveries . | . . . . . . Exploration | -11 -10 -10 -10 -9 -8 ------------- Run | Yrd Mat Min Exi Min Mat Turns Passed 4914 | 13 1898 518 704 457 1324 Spaces Moved 2424 | 4 915 275 384 234 612 Core . | . . . . . . Treads 190 | . 190 . . . . Legs 19 | 4 15 . . . . Wheels 2215 | . 710 275 384 234 612 Hover . | . . . . . . Flight . | . . . . . . Fastest Speed 120 | 120 120 175 175 175 190 Average Speed 179 | 120 170 175 180 189 190 Slowest Speed 190 | 120 175 175 190 190 190 Overloaded Moves . | . . . . . . Propulsion Burnouts . | . . . . . . Robots Hopped . | . . . . . . Cave-ins Triggered . | . . . . . . Exploration Rate (%) 55 | 2 98 45 69 52 66 Regions Visited 5 Branch Regions 3 Pre-discovered Areas 2 | . . 1 1 . . Known Exits Taken . | . . . . . . Unknown Exits Taken 5 | 1 1 1 1 1 . Scrap Searched 2 | . . 1 . 1 . Spaces Dug 22 | . . . . 22 . Terrain Destroyed 87 | . 18 25 . 39 5 Melee . | . . . . . . Projectile 11 | . . . . 6 5 AOE 76 | . 18 25 . 33 . Terrain Rammed . | . . . . . . Walls Destroyed . | . . . . . . Machines Disabled . | . . . . . . Actions | -11 -10 -10 -10 -9 -8 --------- Run | Yrd Mat Min Exi Min Mat Total 2765 | 7 1097 298 397 243 723 Wait 57 | . 49 1 . . 7 Move 2419 | 3 914 274 383 233 612 Hop . | . . . . . . Pick Up 36 | . 17 5 2 1 11 Fast Attach 12 | 1 2 1 2 . 6 Attach 7 | . 4 1 . 2 . Detach 10 | . 2 2 3 2 1 Swap 17 | . 7 2 1 . 7 Drop 33 | . 7 2 6 . 18 Fire 174 | 3 95 10 . 5 61 Melee . | . . . . . . Ram . | . . . . . . Kick . | . . . . . . Crush . | . . . . . . Escape Stasis . | . . . . . . Rewire . | . . . . . . Trap . | . . . . . . Miscellaneous . | . . . . . . Route ------- -11/Scrapyard -10/Materials (discovered 4 exits: [*Mat x3] / *Min) -10/Mines (discovered 2 exits: [*Mat] / *Exi) -10/Exiles -9/Mines -8/Materials (discovered 2 exits: [*Fac x2]) History --------- Turn | Location | Event 9 | -11/Scrapyard | Discovered new exit (range 0) 14 | -11/Scrapyard | Entered Materials 113 | -10/Materials | Central database locked down 313 | -10/Materials | Build established: Mutant 459 | -10/Materials | Discovered new exit (range 7) 612 | -10/Materials | Discovered new exit (range 10) 918 | -10/Materials | Discovered new exit (range 10) 1339 | -10/Materials | Core integrity fell below 50% 1559 | -10/Materials | Discovered new exit (range 4) 1912 | -10/Materials | Entered Mines 1913 | -10/Mines | Learned location of Storage (-9) 1950 | -10/Mines | Met a Derelict bent on vengeance 2073 | -10/Mines | Met a Derelict shopkeep closing up shop 2170 | -10/Mines | Discovered new exit (range 10) 2317 | -10/Mines | Deemed a non-threat by the Exiles lab entrance 2317 | -10/Mines | Discovered new exit (range 5) 2430 | -10/Mines | Entered Exiles 2474 | -10/Exiles | Met 8R-AWN 2504 | -10/Exiles | Met EX-HEX 2553 | -10/Exiles | Met EX-BIN 2572 | -10/Exiles | Aligned with FarCom system 2574 | -10/Exiles | Given EX-Vault access code 2614 | -10/Exiles | Opened EX-Vault 2644 | -10/Exiles | Found 0b10 Alert Chip 2693 | -10/Exiles | Warned to stay clear of 0b10 Research branches 2744 | -10/Exiles | Met EX-DEC 2754 | -10/Exiles | Learned location of Zion (-6) 2853 | -10/Exiles | Found AWS/Thermal 2860 | -10/Exiles | Found Trap Reconfigurator 3115 | -10/Exiles | Discovered new exit (range 12) 3134 | -10/Exiles | Stole three prototypes: AWS/Thermal, 0b10 Alert Chip, Trap Reconfigurator 3134 | -10/Exiles | Entered Mines 3291 | -9/Mines | Core integrity fell below 20% 3381 | -9/Mines | A weapon hastily lodged in a ceiling crevice suddenly fell to the ground 3410 | -9/Mines | Learned Materials stockpile data 3564 | -9/Mines | Discovered new exit (range 15) 3591 | -9/Mines | Entered Materials 3591 | -8/Materials | Evolved 4 slots: Utility x3, Weapon x1 3810 | -8/Materials | Garrison activated, responded to threat 3900 | -8/Materials | Build established: Tank 3965 | -8/Materials | Discovered new exit (range 13) 4229 | -8/Materials | Met 7R-MNS 4595 | -8/Materials | Central database locked down 4645 | -8/Materials | Discovered new exit (range 7) 4915 | -8/Materials | Self-destructed Last Messages --------------- 04888_ Acquired 20 matter. 04888_ K-01 Serf collects debris. 04896_ O-16 Technician sends out distress signal. 04896_ O-16 Technician: "IFF HANDSHAKE FAILED. SECURING TERMINAL." 04897_ Connecting with Terminal... >>Trojan(Assimilate) Trojan loaded successfully. Testing... System interface override in place. 04897_ ALERT: Suspicious activity at Terminal M001. Dispatching Investigation squad. 04899_ Electrolysis Chamber disabled. 04903_ Neutrino Reactor explodes. 04904_ K-01 Serf collects debris. 04905_ W-25 Informer destroyed. 04905_ Datajack fried. 04905_ O-16 Technician destroyed. 04906_ G-47 Trooper destroyed. 04908_ K-01 Serf collects debris. Map ----- +----------------------------------------------------+ | ?????????????????????# #? = #????????????????? | | ?????????????????????# #?######????????????????? | | ?????????????????????# #???????????????????????? | | ?????????????????????# #???????????????????????? | | ?????????????????????# #???????????????????????? | | ?????????????????????# #???????????????????????? | | ?????????????????????# #???????????????????????? | | ?????????????????????+ #???????????????????????? | | ?????????????????######+######???????????????????? | | ?????????????????# #???????????????????? | | ?????????????????# """ """ =#???????????????????? | | ?????????????????# """ """ #???????????????????? | | ????????????????## """ """ #???????????????????? | | ??????????# [%+ #???????????????????? | | ????????????????## #???????????????????? | | ??????????# ??#??# ! = #???????????????????? | | ??????????# ## ##########+###???????????????????? | | ??????????# ! ####%########??????????????? | | ??????????# % "T"=*+ #?????????????? | | ??????????# =% k[# """ #?????????????? | | ??????????# * % #] """ ??????????????? | | ??????????# ! # """ /??????????????? | | ??????????# = / """ ???????????????? | | ??????? =% # #?????????????? | | ??????? [ # ! !#?????????????? | | ???????###"##### ## #####@##?#######?????????????? | | ?????????????? ??# ??? ?????????????????????? | | ????????????? ???# ?"" ???????????????????? | | ???????????? ????#?#"T Y#?????????????????? | | ?????????? ???????#"" ##?????????????????? | | ?????????# ????????# !! #??????????????????? | | ?????????? ?????????# ] !! #??????????????????? | | ????????????????????# !! #??????????????????? | | ????????????????????#] #??????????????????? | | ????????????????????###########??????????????????? | | | | | | | | | | | | | | | | | | | | | | | | | | | | | | | +----------------------------------------------------+ Best States ------------- Heat Dissipation 31 Energy Generation 14 Energy Capacity 275 Matter Stores 300 Matter Capacity 300 Sight Range 16 Terrain Scan Density 10 Armor Coverage 150 Weapon Shielding 66 Evasion (%) 50 Recoil Reduction 2 Item Schematics ----------------- Ion Engine | -8/Materials | Scanalyzed Structural Scanner | -8/Materials | Scanalyzed Huge Storage Unit | -8/Materials | Scanalyzed Robot Schematics ------------------ None Fabricated ------------ Nothing Alien Tech Used ----------------- None Achievements -------------- None Challenges ------------ None Game ------ Seed OmegaPhasingProjector Manual? 0 Play Time 00:30:18 Cumulative 276.7 hours Start 2024.05.03 @ 20:30:43 End 2024.05.03 @ 21:17:50 Sessions 1 Manual Loads 0 Difficulty Rogue Special Mode None Game No. 174 Rogue 30 Adventurer 144 Explorer 0 Win Type - Total 4 Types 2/0/1/1/0/0/0/0/0 Lore% 63 Gallery% 75 Achievement% 62 Wizard Run 0 Options --------- Layout 0 ASCII 0 Keyboard 0 Movement Mouse Keybinds 0 Fullscreen 2 Font 20/SmallcapsGlow Map View 66x50 Zoom Use 0% Tactical HUD 1 Map Filters NONE Filters NONE Steam X RUN: 0d9843bd-cf33-41d0-8039-0b77ed2f0806